bitfinex/quotes_ETHUSD_20220109
["timestamp","ask_amount","ask_price","bid_price","bid_amount"]
[1641752204475,1.1987805,3169.2,3168.8,30.96814885]
[1641752204675,1.1987805,3169.2,3169.0,0.05792154]
[1641752204876,4.01591712,3169.4,3169.0,0.05792154]
[1641752205075,4.01591712,3169.4,3168.8,31.26817955]
[1641752205277,0.0073895,3169.3,3169.1,1.57754]
[1641752205678,0.00682108,3169.2,3169.1,1.57754]
[1641752206731,0.00682108,3169.2,3169.1,2.3663085]
[1641752206929,2.69331325,3169.2,3169.1,2.3663085]
[1641752210571,2.69331325,3169.2,3169.1,3.6663085]
[1641752210770,2.69331325,3169.2,3169.1,2.6663085]
[1641752210970,2.69331325,3169.2,3169.1,3.6663085]
[1641752211473,2.69331325,3169.2,3169.1,2.3663085]
[1641752212472,2.69331325,3169.2,3169.1,1.57754]
[1641752215319,2.69331325,3169.2,3169.1,2.3663677]
[1641752215519,2.69331325,3169.2,3168.9,1.57764]
[1641752215920,0.00625266,3169.1,3168.9,1.57764]
[1641752216420,0.00568423,3169.0,3168.9,1.57764]
[1641752218171,2.6922074,3169.0,3168.9,1.57764]
[1641752220376,0.00568423,3169.0,3168.9,1.57764]
[1641752220573,0.00568423,3169.0,3168.9,2.87764]
[1641752221228,0.00568423,3169.0,3168.9,6.42764]
[1641752221422,0.00568423,3169.0,3168.9,2.87764]
[1641752221619,0.00568423,3169.0,3168.9,5.36497395]
[1641752222221,0.00568423,3169.0,3168.9,11.21497395]
[1641752222423,0.00568423,3169.0,3168.9,5.36497395]
[1641752223021,0.00568423,3169.0,3168.9,9.16497395]
[1641752223823,0.00568423,3169.0,3168.9,5.36497395]
[1641752224222,0.00568423,3169.0,3168.9,2.87764]
[1641752224425,0.00568423,3169.0,3168.9,5.37584682]
[1641752224627,0.00568423,3169.0,3168.9,5.37530068]
[1641752225782,0.00568423,3169.0,3168.9,2.87764]
[1641752226883,0.00568423,3169.0,3168.9,1.57764]
[1641752228385,0.00568423,3169.0,3168.9,2.57764]
[1641752229023,0.00568423,3169.0,3168.9,5.1012002]
[1641752229630,0.00568423,3169.0,3168.9,2.57764]
[1641752232473,0.00568423,3169.0,3168.9,5.06179336]
[1641752233276,0.00568423,3169.0,3168.9,5.36179336]
[1641752233675,0.00568423,3169.0,3168.9,4.06179336]
[1641752234177,0.00568423,3169.0,3168.9,7.01179336]
[1641752235177,0.00568423,3169.0,3168.9,4.06179336]
[1641752236324,8.423e-05,3169.0,3168.9,4.06179336]
[1641752236525,0.00300822,3169.5,3169.0,13.45]
[1641752236824,0.0022737,3169.4,3169.3,0.05031175]
[1641752237032,2.68603042,3170.1,3169.4,13.4]
[1641752237224,2.68603042,3170.1,3169.9,1.07503532]
[1641752237527,2.69000938,3170.1,3169.9,1.07503532]
[1641752237722,8.80000938,3170.1,3169.9,1.07503532]
[1641752238324,6.11397896,3170.1,3169.9,1.07503532]
[1641752238723,6.11397896,3170.1,3169.9,1.86353612]
[1641752238924,6.11397896,3170.1,3170.0,8.13848]
[1641752239123,6.11397896,3170.1,3170.0,0.78848]
[1641752240380,0.00397896,3170.1,3170.0,0.78848]
[1641752240980,0.00397896,3170.1,3170.0,4.63848]
[1641752241380,0.00397896,3170.1,3170.0,0.78848]
[1641752241980,0.00397896,3170.1,3170.0,4.13848]
[1641752243079,0.00397896,3170.1,3170.0,4.81958]
[1641752243750,0.00397896,3170.1,3170.0,6.41958]
[1641752243939,0.00397896,3170.1,3170.0,3.06958]
[1641752244141,0.00397896,3170.1,3170.0,2.08848]
[1641752244841,0.00397896,3170.1,3170.0,0.78848]
[1641752245041,0.00397896,3170.1,3170.0,1.08848]
[1641752245243,0.00397896,3170.1,3170.0,2.08848]
[1641752245942,0.00397896,3170.1,3170.0,3.09794686]
[1641752247675,0.00397896,3170.1,3170.0,2.08848]
[1641752249676,0.00397896,3170.1,3170.0,2.38848]
[1641752250879,0.00397896,3170.1,3170.0,6.13848]
[1641752251324,0.00397896,3170.1,3170.0,2.38848]
[1641752251722,0.00397896,3170.1,3170.0,2.08848]
[1641752253232,0.00397896,3170.1,3170.0,2.03848]
[1641752253427,0.00397896,3170.1,3170.0,0.78848]
[1641752254027,0.00397896,3170.1,3169.8,5.6771]
[1641752254227,0.00397896,3170.1,3169.8,0.7887]
[1641752254428,0.00341054,3170.0,3169.8,0.7887]
[1641752254828,0.00284212,3169.9,3169.8,0.7887]
[1641752276033,3.20284212,3169.9,3169.8,0.7887]
[1641752277035,5.88854161,3169.9,3169.8,0.7887]
[1641752277477,5.88854161,3169.9,3169.8,47.87146492]
[1641752277678,5.88854161,3169.9,3169.8,49.17146492]
[1641752277879,1.1987805,3170.5,3169.9,9.35]
[1641752278079,1.1987805,3170.5,3170.2,0.78839]
[1641752278281,0.00284211,3170.4,3170.3,1.81119454]
[1641752278483,0.00284211,3170.4,3170.3,5.21119454]
[1641752278680,1.1987805,3170.8,3170.3,6.21119454]
[1641752278881,1.1987805,3170.8,3170.3,2.32277234]
[1641752279084,0.00454738,3170.7,3170.3,1.32277234]
[1641752279283,0.00454738,3170.7,3170.5,1.5768304]
[1641752279487,1.0661317,3171.1,3170.5,1.5768304]
[1641752279488,0.00397896,3170.6,3170.5,1.5768304]
[1641752280084,0.00397896,3170.6,3170.5,0.78842]
[1641752280686,0.00397896,3170.6,3170.4,3.1536507]
[1641752280687,0.00397896,3170.6,3170.4,1.57683]
[1641752280891,0.00397896,3170.6,3170.2,0.7885388]
[1641752281083,0.00341054,3170.5,3170.2,0.78858]
[1641752281328,0.00341054,3170.5,3170.0,1.2473]
[1641752281631,1.35305714,3170.2,3170.0,1.2473]
[1641752281826,1.35305714,3170.2,3169.8,39.63349955]
[1641752281827,1.35305714,3170.2,3169.8,35.88069955]
[1641752282029,0.00113684,3170.1,3169.9,1.57719]
[1641752282226,0.00113684,3170.1,3169.9,2.57719]
[1641752282827,0.00113684,3170.1,3170.0,0.7885916]
[1641752283827,0.00113684,3170.1,3170.0,4.9771816]
[1641752284028,0.00113684,3170.1,3170.0,1.5771816]
[1641752284630,0.00113684,3170.1,3170.0,0.78859]
[1641752285074,0.00113684,3170.1,3169.9,0.78868]
[1641752285275,0.00113684,3170.1,3169.6,1.57731]
[1641752285476,3.20113684,3170.1,3169.2,4.5172471]
[1641752285679,3.20113684,3170.1,3169.7,0.00113685]
[1641752286076,1.39027653,3169.9,3169.7,0.00113685]
[1641752286574,1.56203893,3170.0,3169.7,0.78984685]
[1641752286976,0.00113684,3170.1,3169.7,0.78984685]
[1641752289234,0.00113684,3170.1,3169.7,1.57845885]
[1641752289430,0.00113684,3170.1,3169.9,0.78861]
[1641752290229,0.00113684,3170.1,3170.0,8.6060014]
[1641752290429,0.00113684,3170.1,3170.0,9.63890138]
[1641752290631,0.00113684,3170.1,3170.0,12.81581138]
[1641752290833,1.1987805,3170.5,3170.1,11.15]
[1641752291031,1.1987805,3170.5,3170.2,3.64258311]
[1641752291230,0.00113685,3170.3,3170.2,3.64258311]
[1641752291433,0.14991735,3170.5,3170.3,11.05]
[1641752291629,1.59839561,3170.7,3170.3,11.05]
[1641752291829,4.03080465,3171.1,3170.3,11.83829]
[1641752292030,1.59839561,3171.4,3170.3,11.83829]
[1641752292031,0.00170527,3170.6,3170.3,11.83829]
[1641752292480,0.00113685,3170.5,3170.3,14.5031789]
[1641752292679,0.00113685,3170.5,3170.4,19.44143356]
[1641752292880,0.00568423,3171.3,3170.4,19.94513356]
[1641752293084,1.59839561,3171.6,3170.9,0.78818]
[1641752293281,1.59839561,3171.6,3170.9,3.35355309]
[1641752293282,0.00397896,3171.2,3170.9,3.35355309]
[1641752293483,0.00397896,3171.2,3171.0,2.3645805]
[1641752293681,7.70839561,3172.0,3171.1,16.44721333]
[1641752294081,0.00511581,3171.4,3171.2,1.0]
[1641752294282,0.00511581,3171.4,3171.3,16.62316749]
[1641752294482,7.70839561,3172.0,3171.6,1.41146955]
[1641752294682,7.70839561,3172.0,3171.7,2.61658703]
[1641752294683,6.11,3172.0,3171.7,2.61658703]
[1641752294882,0.00795792,3171.9,3171.7,2.61658703]
[1641752295188,0.0073895,3171.8,3171.6,2.49756955]
[1641752295382,0.0073895,3171.8,3171.7,10.25488]
[1641752295583,2.84954735,3172.0,3171.7,2.65488]
[1641752295783,1.59839561,3172.6,3171.7,2.65488]
[1641752295784,1.59839561,3172.6,3171.7,3.7428251]
[1641752295982,0.00795792,3171.9,3171.8,13.15]
[1641752296236,3.97135464,3172.8,3171.8,13.15]
[1641752296237,7.20700994,3172.8,3172.4,1.25234369]
[1641752296429,5.62920026,3172.8,3172.4,0.9699]
[1641752296630,0.00341055,3172.5,3172.4,0.9699]
[1641752296829,0.00341055,3172.5,3172.4,1.75778]
[1641752300889,0.00341055,3172.5,3172.4,0.78788]
[1641752301090,0.00341055,3172.5,3172.0,5.4754]
[1641752301391,1.56754412,3172.4,3172.0,5.4754]
[1641752301689,1.56754412,3172.4,3171.8,0.456]
[1641752301690,0.0022737,3172.3,3171.8,0.456]
[1641752302090,1.564702,3172.4,3171.8,2.03199]
[1641752302091,0.00170527,3172.2,3171.8,2.03199]
[1641752302290,0.00170527,3172.2,3171.3,1.74565403]
[1641752302492,0.00113685,3172.1,3171.3,1.96684403]
[1641752302790,0.0022737,3172.3,3171.4,0.00284211]
[1641752303191,0.00170527,3172.2,3171.4,0.00284211]
[1641752303390,0.00170527,3172.2,3171.3,1.56968614]
[1641752303591,0.00397896,3172.1,3171.3,1.56968614]
[1641752304030,0.00341054,3172.0,3171.3,1.56968614]
[1641752304428,0.00284211,3171.9,3171.3,2.35783864]
[1641752304831,0.00227369,3171.8,3171.3,2.35783864]
[1641752305027,0.00227369,3171.8,3171.3,2.65783864]
[1641752305229,0.00170527,3171.7,3171.6,8.28813]
[1641752305532,0.00170527,3171.7,3171.6,8.66694]
[1641752305729,0.00170527,3171.7,3171.6,4.8942553]
[1641752306129,0.00170527,3171.7,3171.6,1.86694]
[1641752306335,0.00170527,3171.7,3171.6,2.16694]
[1641752307131,0.00170527,3171.7,3171.6,1.37881]
[1641752307591,0.00170527,3171.7,3171.5,1.57615]
[1641752307990,0.00113684,3171.6,3171.5,1.87615]
[1641752308192,0.00113684,3171.6,3171.5,9.67615]
[1641752308389,0.00113684,3171.6,3171.5,12.30850898]
[1641752308390,0.00568423,3171.6,3171.5,12.30850898]
[1641752308590,0.00568423,3171.6,3171.5,13.3887832]
[1641752308791,0.00568423,3171.6,3171.5,15.0475832]
[1641752308990,0.00568423,3171.6,3171.5,13.66730898]
[1641752309194,0.00568423,3171.6,3171.5,14.96730898]
[1641752309792,0.00568423,3171.6,3171.5,7.46730898]
[1641752309991,0.00568423,3171.6,3171.5,9.03689614]
[1641752310393,0.00568423,3171.6,3171.5,6.40453716]
[1641752310804,0.00568423,3171.6,3171.5,5.10453716]
[1641752310999,0.00568423,3171.6,3171.5,6.40453716]
[1641752312240,0.00568423,3171.6,3171.5,4.80453716]
[1641752312641,0.00568423,3171.6,3171.5,3.60173716]
[1641752312841,0.00568423,3171.6,3171.5,2.02558716]
[1641752313343,0.00568423,3171.6,3171.5,1.56958716]
[1641752315386,0.00568423,3171.6,3171.5,2.35774716]
[1641752318745,0.00568423,3171.6,3171.5,1.56958716]
[1641752319845,0.00568423,3171.6,3170.9,0.07881]
[1641752320043,0.00568423,3171.6,3170.8,1.0]
[1641752320242,0.00568423,3171.6,3171.0,0.0022737]
[1641752320848,0.00568423,3171.6,3171.2,0.78822]
[1641752321244,0.00568423,3171.6,3171.0,0.0022737]
[1641752323882,0.00568423,3171.6,3171.1,0.78826]
[1641752324280,0.00568423,3171.6,3171.2,0.00113685]
[1641752327537,0.00568423,3171.6,3171.1,0.00170527]
[1641752328732,0.00568423,3171.6,3171.2,0.78824]
[1641752329434,0.00568423,3171.6,3171.1,0.00170527]
[1641752329638,0.87518423,3171.6,3171.1,0.00170527]
[1641752329835,0.87518423,3171.6,3170.9,0.00284212]
[1641752329836,0.07882,3171.5,3170.9,0.00284212]
[1641752330082,0.07882,3171.5,3170.6,0.00454739]
[1641752330281,0.07882,3171.5,3170.2,0.00682108]
[1641752330484,1.13148693,3170.5,3170.2,0.00682108]
[1641752330782,1.13148693,3170.5,3170.1,0.78853]
[1641752330983,0.00113684,3170.4,3170.1,0.78853]
[1641752331383,0.00113684,3170.4,3169.9,1.2162]
[1641752331588,0.00113684,3170.4,3169.7,1.57708]
[1641752331781,0.00113684,3170.4,3170.0,0.00113685]
[1641752333183,0.00113684,3170.4,3169.8,1.30099198]
[1641752333384,0.00113684,3170.4,3170.0,0.78852]
[1641752334631,0.00113684,3170.4,3170.2,0.05394409]
[1641752334832,0.00113684,3170.4,3170.0,0.78852]
[1641752335235,0.00113684,3170.4,3169.9,1.57863527]
[1641752337680,0.00113684,3170.4,3170.0,0.7884832]
[1641752337980,0.00113684,3170.4,3170.2,0.78848]
[1641752340279,0.00113684,3170.4,3170.2,1.5769345]
[1641752342631,0.00113684,3170.4,3170.2,2.72523016]
[1641752342829,0.00113684,3170.4,3170.3,16.05087672]
[1641752343031,1.70001581,3171.6,3170.4,10.6]
[1641752343233,7.03565,3171.8,3171.0,1.5764165]
[1641752343433,0.00454739,3171.2,3171.0,1.83320761]
[1641752343832,0.00397897,3171.1,3171.0,1.83320761]
[1641752344031,0.00397897,3171.1,3171.0,0.78822]
[1641752344433,0.00397897,3171.1,3171.0,1.5764101]
[1641752344634,0.00397897,3171.1,3171.0,4.11240493]
[1641752344836,0.00397897,3171.1,3171.0,4.23442847]
[1641752345281,0.00397897,3171.1,3171.0,1.5764101]
[1641752345485,0.00397897,3171.1,3171.0,4.10611829]
[1641752345680,0.00397897,3171.1,3171.0,1.5764101]
[1641752347182,0.00397897,3171.1,3171.0,0.78822]
[1641752347780,0.00397897,3171.1,3170.8,1.5766]
[1641752348183,0.00341054,3171.0,3170.6,0.78842]
[1641752348581,0.07882,3171.5,3170.6,0.78842]
[1641752348582,0.00284212,3170.9,3170.6,0.78842]
[1641752349030,0.0022737,3170.8,3170.6,0.78842]
[1641752349528,0.00170527,3170.7,3170.6,0.78842]
[1641752350032,0.00341054,3170.7,3170.6,0.78842]
[1641752351632,0.00341054,3170.7,3170.6,5.08842]
[1641752351932,0.00341054,3170.7,3170.6,8.67029872]
[1641752352132,0.00341054,3170.7,3170.6,9.12629872]
[1641752352332,0.00297475,3171.2,3170.7,13.4]
[1641752352586,0.00297475,3171.2,3170.9,1.8762569]
[1641752352781,0.00297475,3171.2,3171.0,2.69837692]
[1641752353181,0.00297475,3171.2,3171.1,5.2]
[1641752353380,0.00297475,3171.2,3171.1,7.77673105]
[1641752353581,0.0041116,3171.2,3171.1,5.2]
[1641752353781,0.0041116,3171.2,3171.0,4.3207277]
[1641752354182,0.00113685,3171.2,3171.0,4.3207277]
[1641752354379,0.00113685,3171.2,3171.0,2.7444626]
[1641752358129,0.00113685,3171.2,3171.1,6.3]
[1641752358329,0.00113685,3171.2,3171.1,1.0]
[1641752358530,0.00113685,3171.2,3171.0,2.7444626]
[1641752358732,0.00113685,3171.2,3171.0,5.29843711]
[1641752358932,0.00113685,3171.2,3171.0,2.7444626]
[1641752361879,0.00113685,3171.2,3171.0,1.95633]
[1641752363481,0.00113685,3171.2,3171.0,2.744613]
[1641752365036,0.00113685,3171.2,3171.0,1.95633]
[1641752366036,0.00113685,3171.2,3171.0,0.78813]
[1641752366236,0.00113685,3171.2,3170.8,0.00113684]
[1641752366438,1.1300107,3170.9,3170.8,0.78951684]
[1641752366638,1.1300107,3170.9,3170.4,1.6384]
[1641752366639,1.1300107,3170.9,3170.7,0.00170527]
[1641752366836,1.1300107,3170.9,3170.8,0.00113684]
[1641752367038,1.1300107,3170.9,3170.5,0.00284211]
[1641752367236,1.29721158,3170.8,3170.2,0.00454738]
[1641752367491,1.29721158,3170.8,3170.1,0.00511581]
[1641752367685,1.29721158,3170.8,3170.3,1.5767891]
[1641752367886,1.29721158,3170.8,3170.4,0.78848]
[1641752368088,1.29721158,3170.8,3170.4,0.79189054]
[1641752368283,1.29721158,3170.8,3170.5,0.00284211]
[1641752368885,1.29721158,3170.8,3170.2,0.00454738]
[1641752369686,1.29721158,3170.8,3170.4,0.7884363]
[1641752369886,1.29721158,3170.8,3170.6,0.78842]
[1641752370287,1.29721158,3170.8,3170.7,0.00170527]
[1641752370886,1.29721158,3170.8,3170.3,0.00397896]
[1641752371533,1.29721158,3170.8,3170.2,1.33085896]
[1641752371833,0.00227369,3170.7,3170.2,1.33085896]
[1641752372231,0.00170527,3170.6,3170.2,1.33085896]
[1641752372633,0.00113685,3170.5,3170.3,0.7884624]
[1641752372833,0.00113685,3170.5,3170.4,3.98848]
[1641752373033,1.29721158,3170.8,3170.4,3.98848]
[1641752373034,0.00227369,3170.7,3170.4,3.98848]
[1641752373236,0.00113685,3170.5,3170.4,3.98848]
[1641752373440,0.00170527,3170.6,3170.4,3.98848]
[1641752373634,0.00113685,3170.5,3170.4,3.98848]
[1641752374040,0.00113685,3170.5,3170.4,0.78848]
[1641752374437,0.00113685,3170.5,3170.4,5.03848]
[1641752374736,1.30778577,3170.5,3170.4,1.78848]
[1641752374985,0.00113685,3170.5,3170.4,1.78848]
[1641752375179,0.00113685,3170.5,3170.4,0.78848]
[1641752375379,0.00113685,3170.5,3170.4,6.18848]
[1641752375581,0.00113685,3170.5,3170.4,1.78848]
[1641752381336,0.00113685,3170.5,3170.4,0.78848]
[1641752383280,0.00113685,3170.5,3170.4,7.33848]
[1641752383483,0.00113685,3170.5,3170.4,8.33848]
[1641752385779,0.00113685,3170.5,3170.4,2.38848]
[1641752387033,0.00113685,3170.5,3170.4,1.38848]
[1641752387234,0.00113685,3170.5,3170.4,9.34299937]
[1641752387434,0.00113685,3170.5,3170.4,8.34299937]
[1641752387634,0.00113685,3170.5,3170.4,9.34299937]
[1641752388233,0.00113685,3170.5,3170.4,13.17184937]
[1641752388435,0.00113685,3170.5,3170.4,14.31593615]
[1641752388637,0.00113685,3170.5,3170.4,14.77193615]
[1641752388836,0.00113685,3170.5,3170.4,11.02193615]
[1641752389437,3.685e-05,3170.5,3170.4,11.02193615]
[1641752389638,2.68477532,3171.4,3170.6,0.05640236]
[1641752389987,0.00454738,3171.3,3171.0,0.05094316]
[1641752390184,0.00454738,3171.3,3171.1,0.456]
[1641752390380,4.027071,3172.0,3171.1,0.53627422]
[1641752390381,0.00397896,3171.2,3171.1,0.53627422]
[1641752390580,0.00397896,3171.2,3171.1,3.61011503]
[1641752390780,0.00397896,3171.2,3171.1,3.52984081]
[1641752390979,0.00397896,3171.2,3171.1,4.90866081]
[1641752391185,0.00397896,3171.2,3171.1,12.65866081]
[1641752391380,0.00397896,3171.2,3171.1,12.57984081]
[1641752391780,0.00397896,3171.2,3171.1,13.36792081]
[1641752391980,5.02135109,3172.4,3171.2,10.65]
[1641752392181,5.02135109,3172.4,3171.3,3.68922966]
[1641752392381,0.00568423,3172.2,3171.3,3.68922966]
[1641752392582,0.00568423,3172.2,3171.3,4.28922966]
[1641752392881,0.00511581,3172.1,3171.7,2.3643364]
[1641752393085,0.00511581,3172.1,3171.9,0.78811]
[1641752393281,0.00454739,3172.0,3171.9,0.78811]
[1641752396740,0.00454739,3172.0,3171.7,36.45745295]
[1641752396939,0.00454739,3172.0,3171.8,1.0]
[1641752397139,0.00397896,3171.9,3171.8,1.0]
[1641752397789,0.00397896,3171.9,3171.7,34.88123295]
[1641752398185,1.5407404,3172.3,3171.7,34.88123295]
[1641752398686,0.00568423,3172.2,3171.7,34.88123295]
[1641752398988,0.00511581,3172.1,3171.5,1.08823]
[1641752399488,0.00454739,3172.0,3171.5,0.78823]
[1641752399886,0.00397896,3171.9,3171.5,0.78823]
[1641752400287,0.00341054,3171.8,3171.5,0.78823]
[1641752400685,0.00284212,3171.7,3171.5,0.78823]
[1641752400887,0.00284212,3171.7,3171.6,6.8762]
[1641752401087,1.5407404,3172.3,3171.8,0.7881024]
[1641752401333,1.5407404,3172.3,3171.9,0.78813]
[1641752401534,0.00568423,3172.2,3171.9,0.78813]
[1641752401932,0.00511581,3172.1,3171.9,0.78813]
[1641752402334,0.00454739,3172.0,3171.9,0.78813]
[1641752402936,0.00454739,3172.0,3171.9,1.78813]
[1641752403637,0.00454739,3172.0,3171.9,5.07780019]
[1641752404042,0.00454739,3172.0,3171.9,11.07780019]
[1641752404641,1.19548232,3173.0,3172.0,13.4]
[1641752404838,1.19548232,3173.0,3172.5,0.78787]
[1641752405104,0.00511581,3172.9,3172.6,1.05845821]
[1641752405603,0.00454739,3172.8,3172.6,1.05845821]
[1641752406002,0.00397896,3172.7,3172.6,2.63418821]
[1641752406402,0.00397896,3172.7,3172.6,3.63418821]
[1641752406607,0.00397896,3172.7,3172.6,3.42206201]
[1641752407004,2.58718708,3173.5,3172.6,3.42206201]
[1641752407202,1.37946285,3173.5,3172.7,1.78792]
[1641752407405,0.00284212,3173.2,3172.7,0.78792]
[1641752407703,0.0022737,3173.1,3172.5,0.78786]
[1641752408103,0.00170527,3173.0,3172.5,0.78786]
[1641752408304,0.00170527,3173.0,3172.7,0.78793]
[1641752408504,0.00113685,3172.9,3172.7,0.78793]
[1641752408932,2.68368832,3173.4,3172.7,0.78793]
[1641752408933,1.03585471,3173.2,3172.7,0.78793]
[1641752409333,0.0022737,3173.1,3172.7,0.78793]
[1641752409733,0.00170527,3173.0,3172.7,0.78793]
[1641752410138,0.00113685,3172.9,3172.5,0.78786]
[1641752410634,0.00170527,3173.0,3172.5,0.78786]
[1641752410833,0.00170527,3173.0,3172.7,0.7879]
[1641752411035,0.00113685,3172.9,3172.7,0.7879]
[1641752411435,0.00170527,3173.0,3172.7,0.7879]
[1641752411837,0.00113685,3172.9,3172.7,0.7879]
[1641752412236,3.76238541,3173.4,3172.7,0.7879]
[1641752412237,3.76636438,3173.4,3172.7,0.7879]
[1641752412691,0.00341054,3173.3,3172.7,0.7879]
[1641752413688,2.68709886,3173.3,3172.7,0.7879]
[1641752414189,2.98709886,3173.3,3171.4,0.456]
[1641752414392,2.98709886,3173.3,3171.4,1.5948]
[1641752414393,2.76476572,3173.2,3171.4,1.5948]
[1641752414590,2.76476572,3173.2,3172.0,0.00397896]
[1641752414791,0.0022737,3173.1,3172.0,0.00397896]
[1641752414990,1.4012665,3172.1,3172.0,0.00397896]
[1641752415189,1.4012665,3172.1,3172.0,0.79205266]
[1641752415489,1.4012665,3172.1,3172.0,1.58015266]
[1641752419036,2.68769099,3173.0,3172.2,0.7881]
[1641752419236,0.00170527,3173.0,3172.2,0.7881]
[1641752419436,0.00113685,3172.9,3172.3,0.00227369]
[1641752419837,0.0022737,3173.1,3172.3,0.00227369]
[1641752420089,1.54616926,3173.0,3172.3,0.00227369]
[1641752420290,1.54787453,3173.0,3172.1,0.00341054]
[1641752420489,1.54787453,3173.0,3172.4,0.78808]
[1641752420490,1.26252759,3172.9,3172.4,0.78808]
[1641752420689,0.00113685,3172.9,3172.4,0.78808]
[1641752420894,0.00113685,3172.9,3172.5,0.00113684]
[1641752421489,0.00113685,3172.9,3172.2,2.55417594]
[1641752421692,0.00113685,3172.9,3172.8,0.7879]
[1641752424443,0.00113685,3172.9,3172.8,1.7172]
[1641752425744,0.00113685,3172.9,3172.8,9.8172]
[1641752426145,2.68334642,3173.6,3173.1,0.78765]
[1641752426544,0.00341054,3173.5,3173.2,1.11483448]
[1641752426944,0.00284212,3173.4,3173.2,1.11483448]
[1641752427350,0.00227369,3173.3,3173.2,1.11483448]
[1641752427596,0.00227369,3173.3,3173.2,1.41483448]
[1641752427794,0.00227369,3173.3,3173.2,5.36483448]
[1641752427991,0.00227369,3173.3,3173.2,1.11483448]
[1641752428492,0.00227369,3173.3,3173.2,2.11483448]
[1641752428695,0.00227369,3173.3,3173.2,1.11483448]
[1641752429495,0.00227369,3173.3,3173.2,1.41483448]
[1641752429695,0.00227369,3173.3,3173.2,5.56483448]
[1641752429899,0.00227369,3173.3,3173.2,9.0928597]
[1641752430296,0.00227369,3173.3,3173.2,6.56483448]
[1641752430496,0.00227369,3173.3,3173.2,5.22438108]
[1641752430696,0.00227369,3173.3,3173.2,8.27438108]
[1641752431098,0.00297475,3173.8,3173.5,0.78758]
[1641752431338,0.00297475,3173.8,3173.2,2.71483448]
[1641752431339,2.68295356,3173.7,3173.2,2.71483448]
[1641752431539,2.68522726,3173.7,3173.4,1.3]
[1641752431738,2.68522726,3173.7,3173.4,0.3]
[1641752431937,2.68522726,3173.7,3173.3,1.3]
[1641752432138,0.0022737,3173.7,3173.5,1.57524]
[1641752433340,0.0022737,3173.7,3173.5,2.3629121]
[1641752437387,0.0022737,3173.7,3173.6,0.78761]
[1641752437587,0.0022737,3173.7,3173.6,1.78761]
[1641752438289,0.0022737,3173.7,3173.6,3.362785]
[1641752438740,2.6829199,3174.0,3173.6,3.362785]
[1641752438942,2.6829199,3174.0,3173.6,1.78761]
[1641752439139,0.00113684,3173.9,3173.6,1.78761]
[1641752439844,0.00113684,3173.9,3173.8,0.78764]
[1641752440543,0.00113684,3173.9,3173.6,1.0]
[1641752440941,0.00113684,3173.9,3173.5,1.57524]
[1641752441341,0.00113684,3173.9,3173.4,1.0]
[1641752441545,0.00113684,3173.9,3173.3,1.65413]
[1641752441741,0.00113684,3173.9,3173.6,0.78772]
[1641752442599,0.00113684,3173.9,3173.6,1.5754107]
[1641752443695,0.00113684,3173.9,3173.6,2.5754107]
[1641752444395,2.67390273,3174.0,3173.6,2.5754107]
[1641752444697,2.67390273,3174.0,3173.4,0.00170527]
[1641752444698,1.13149573,3173.7,3173.4,0.78778]
[1641752444896,1.13149573,3173.7,3173.2,1.5753365]
[1641752445095,1.13149573,3173.7,3173.5,0.00227369]
[1641752445497,1.43090542,3174.1,3173.5,0.00227369]
[1641752445697,1.43090542,3174.1,3173.3,1.87545]
[1641752445899,1.43090542,3174.1,3173.3,3.17545]
[1641752446096,1.43090542,3174.1,3173.4,0.00284211]
[1641752446342,1.43090542,3174.1,3173.4,1.00284211]
[1641752446541,1.43090542,3174.1,3173.4,0.79058131]
[1641752446741,1.43090542,3174.1,3173.4,1.74058131]
[1641752447041,2.52551972,3174.1,3173.4,1.00284211]
[1641752447243,2.52551972,3174.1,3173.4,0.00284211]
[1641752447441,2.52551972,3174.1,3173.4,1.00284211]
[1641752448342,2.52551972,3174.1,3173.4,0.00284211]
[1641752448546,2.82551972,3174.1,3173.4,0.00284211]
[1641752448743,0.07877,3174.0,3173.2,0.00397896]
[1641752448943,2.52551972,3174.1,3173.3,0.00341054]
[1641752449142,2.52551972,3174.1,3173.0,0.00511581]
[1641752449343,1.41118483,3173.1,3173.0,0.00511581]
[1641752449544,8.0683,3174.0,3173.0,1.58070581]
[1641752449746,3.7761,3174.0,3173.0,1.57559]
[1641752450001,3.7761,3174.0,3173.1,0.00454738]
[1641752450395,1.10891685,3173.7,3173.1,0.00454738]
[1641752450595,1.3113696,3173.6,3173.1,0.79234718]
[1641752450996,1.3113696,3173.6,3173.2,0.00397896]
[1641752451200,3.7761,3174.0,3173.2,0.79170896]
[1641752451399,0.00170527,3174.2,3173.2,0.79170896]
[1641752451598,0.00170527,3174.2,3173.3,0.00341054]
[1641752451797,0.00113685,3174.1,3173.5,0.7876685]
[1641752451997,0.00113685,3174.1,3173.5,0.6]
[1641752452201,1.43510064,3173.7,3173.6,0.00170527]
[1641752453099,1.43510064,3173.7,3173.4,0.00284211]
[1641752453501,1.43510064,3173.7,3173.3,0.00341054]
[1641752453941,1.43510064,3173.7,3173.0,1.6]
[1641752453942,1.32602451,3173.6,3173.1,0.00454738]
[1641752454146,1.43510064,3173.7,3173.1,0.00454738]
[1641752454942,1.43510064,3173.7,3173.2,0.7878]
[1641752455340,1.43510064,3173.7,3173.3,0.00341054]
[1641752455744,1.43600064,3173.7,3173.3,0.00341054]
[1641752456842,1.43600064,3173.7,3173.2,0.00397896]
[1641752457894,1.38600064,3173.7,3173.2,0.00397896]
[1641752460500,1.33600064,3173.7,3173.2,0.00397896]
[1641752462240,1.33600064,3173.7,3173.3,0.06186225]
[1641752462439,1.33600064,3173.7,3173.5,0.78765]
[1641752462839,1.33600064,3173.7,3173.6,0.00170527]
[1641752463240,2.67908896,3173.7,3173.6,0.00170527]
[1641752463646,1.33600064,3173.7,3173.3,0.00341054]
[1641752464643,1.33600064,3173.7,3173.6,0.78771]
[1641752465094,1.33600064,3173.7,3173.6,0.60170527]
[1641752465494,1.33600064,3173.7,3173.6,0.00170527]
[1641752465894,4.0186364,3173.7,3173.5,0.78774]
[1641752466296,4.0186364,3173.7,3173.6,0.00170527]
[1641752466901,1.33600064,3173.7,3173.6,0.00170527]
[1641752470039,1.33600064,3173.7,3173.4,1.00284211]
[1641752470241,1.33600064,3173.7,3173.4,0.00284211]
[1641752470439,1.33600064,3173.7,3173.4,1.00284211]
[1641752470641,1.33600064,3173.7,3173.4,0.00284211]
[1641752471041,1.33600064,3173.7,3173.6,0.78777]
[1641752471341,1.33600064,3173.7,3173.6,1.57721137]
[1641752471840,1.33600064,3173.7,3173.6,2.57721137]
[1641752477642,0.0009,3173.7,3173.6,2.57721137]
[1641752478043,0.0009,3173.7,3173.6,2.87721137]
[1641752478243,0.0009,3173.7,3173.6,3.17721137]
[1641752480392,0.0009,3173.7,3173.6,2.57721137]